fUSD/lending_fUSD_20260201
["ID","MTS","AMOUNT","RATE_DAILY","PERIOD"]
[404201790,1769955042210,-5531.0,0.000177,3]
[404201791,1769955042220,-453.85599599,0.000177,2]
[404201792,1769955042229,-482.0,0.00017711,2]
[404201793,1769955042238,-482.0,0.00017717,2]
[404201794,1769955042251,-232.35244255,0.00017733,2]
[404201795,1769955042260,-453.85599599,0.0001775,2]
[404201796,1769955042269,-232.35244255,0.00017767,2]
[404201797,1769955042278,-168.0,0.00017789,2]
[404201798,1769955042287,-569.27280101,0.0001779,2]
[404201799,1769955042297,-500.0,0.00017799,2]
[404201800,1769955042306,-500.0,0.00017799,2]
[404201801,1769955042315,-500.0,0.00017799,2]
[404201802,1769955042325,-500.0,0.00017799,2]
[404201803,1769955042333,-500.0,0.00017799,2]
[404201804,1769955042342,-1000000.0,0.000178,2]
[404201805,1769955042351,-151.0,0.000178,2]
[404201806,1769955042360,-151.0,0.000178,2]
[404201807,1769955042369,-232.35244255,0.000178,2]
[404201808,1769955042378,-453.85599599,0.000178,2]
[404201809,1769955042387,-500.0,0.00017808,2]
[404201810,1769955042397,-709.96875,0.0001782,2]
[404201811,1769955042406,-709.96876,0.0001782,2]
[404201812,1769955042415,-232.35244255,0.00017833,2]
[404201813,1769955042424,-453.85599599,0.0001785,2]
[404201814,1769955042433,-500.0,0.00017863,2]
[404201815,1769955042443,-232.35244255,0.00017867,2]
[404201816,1769955042452,-382.0,0.00017872,2]
[404201817,1769955042461,-382.0,0.00017884,2]
[404201818,1769955042470,-500.0,0.00017899,2]
[404201819,1769955042480,-25000.0,0.000179,3]
[404201820,1769955042489,-10138.3866,0.000179,2]
[404201821,1769955042500,-19421.16754929,0.000179,3]
[404201822,1769955042510,-4020.84613535,0.000179,2]
[404201823,1769955042519,-232.35244255,0.000179,2]
[404201824,1769955042528,-7874.30407594,0.000179,2]
[404201825,1769955042537,-969.0,0.00017906,2]
[404201826,1769955042547,-500.0,0.00017918,2]
[404201827,1769955042557,-346.92554585,0.00017948,2]
[404201828,1769955042566,-382.0,0.00017949,2]
[404201829,1769955042576,-209.40437684,0.0001795,2]
[404201830,1769955042586,-251.11897888,0.0001795,2]
[404201831,1769955042595,-500.0,0.00017972,2]
[404201832,1769955042605,-1283.0,0.00017973,2]
[404201833,1769955042615,-382.0,0.00017977,2]
[404201834,1769955042625,-569.27280101,0.0001799,2]
[404201835,1769955042635,-569.27280101,0.0001799,2]
[404201836,1769955042644,-378.0,0.00017993,2]
[404201837,1769955042655,-500.0,0.00017993,2]
[404201838,1769955042664,-500.0,0.00017993,2]
[404201839,1769955042673,-168.291541,0.00017994,2]
[404201840,1769955042682,-335536.5971489,0.00017994,2]
[404201841,1769955042691,-754.2303598,0.00017994,2]
[404201842,1769955042700,-151.0,0.00017994,2]
[404201843,1769955042709,-151.0,0.00017994,2]
[404201844,1769955042719,-150.0,0.00017999,2]
[404201845,1769955042729,-150.0,0.00017999,2]
[404201846,1769955042737,-150.0,0.00017999,2]
[404201847,1769955042748,-150.0,0.00017999,2]
[404201848,1769955042757,-150.0,0.00017999,2]
[404201849,1769955042766,-150.0,0.00017999,2]
[404201850,1769955042776,-240.62946663,0.00017999,2]
[404201851,1769955042786,-500.0,0.00017999,2]
[404201852,1769955042795,-500.0,0.00017999,2]
[404201853,1769955042805,-500.0,0.00017999,2]
[404201854,1769955042814,-500.0,0.00017999,2]
[404201855,1769955042823,-500.0,0.00017999,2]
[404201856,1769955042833,-1053308.70172298,0.00018,2]
[404201857,1769955042848,-1438.38222355,0.00018,2]
[404201858,1769955042865,-500.0,0.00016438,2]
[404201859,1769955042875,-1042.02172142,0.00018,2]
[404201860,1769955042886,-358.72038911,0.00018,2]
[404201861,1769955042897,-3605.63493851,0.00018,2]
[404201862,1769955042910,-260.25,0.00018,2]
[404201863,1769955042924,-11016.80848842,0.00018,2]
[404201864,1769955042937,-23894.96710464,0.00018,2]
[404201865,1769955042948,-477.01024154,0.00018,2]
[404201866,1769955042976,-500.0,0.00016438,2]
[404201867,1769955042987,-453.85599599,0.000179,2]
[404201868,1769955043000,-44.75424468,0.00018,2]
[404201869,1769955043012,-11126.85270579,0.00018,2]
[404201870,1769955043024,-424.42001937,0.00018,2]
[404201871,1769955043035,-9533.17266637,0.00018,2]
[404201872,1769955043128,-18877.11241602,0.00016797,2]
[404201873,1769955043138,-32615.84981274,0.00018,2]
[404201874,1769955043151,-6008.50315525,0.00018,2]
[404201875,1769955043163,-3336.62340853,0.00018,2]
[404201876,1769955043175,-273.47278806,0.00018,2]
[404201877,1769955043188,-414736.99033746,0.00018,2]
[404201880,1769955043311,-1116.7734641,0.00018,2]
[404201881,1769955043322,-1956.161805,0.00018,2]
[404201882,1769955043334,-398.86290607,0.00018,2]
[404201883,1769955043345,-1463.66239083,0.00018,2]
[404201884,1769955043356,-534.0,0.00018,2]
[404201887,1769955043375,-2175083.85148738,0.00018,2]
[404201888,1769955043387,-481.57727047,0.00018,2]
[404201889,1769955043399,-9434.008408,0.00018,2]
[404201890,1769955043410,-7089.32551755,0.00018,2]
[404201891,1769955043431,-570.39513047,0.00018,2]
[404201893,1769955043443,-1174.76016514,0.00018,2]
[404201896,1769955044359,-933.37048386,0.00016533,2]
[404201897,1769955044369,-4572.61540646,0.00017018,2]
[404201901,1769955045704,-486.67791843,0.00017018,2]
[404201902,1769955045720,-8843.17636971,0.00017018,2]
[404201903,1769955045763,-2050.0,0.00017018,2]
[404201904,1769955045775,-2924.64272142,0.00017018,2]
[404201905,1769955045784,-2991.07032002,0.00017501,2]
[404201906,1769955045794,-394236.57464541,0.00018,2]
[404201915,1769955290631,300.0,0.00015068,3]
[404201916,1769955461959,183.24,0.00012612,2]
[404201921,1769955897449,439.1,0.000125,7]
[404201922,1769955963482,44.12384804,0.00011,2]
[404201923,1769955963503,452.17224538,0.00011,2]
[404201924,1769956048147,5531.0,0.000154,3]
[404201925,1769956079483,5531.0,0.000154,3]
[404201926,1769956087862,1390.144983,7.945e-05,2]
[404201927,1769956111802,5531.0,0.000153,3]
[404201939,1769956143349,5531.0,0.000153,3]
[404201941,1769956150129,-211.32,0.000132,2]
[404201942,1769956150151,-258.0,0.000132,2]
[404201943,1769956150172,-300.0,0.00013219,2]
[404201944,1769956150194,-500.0,0.00013275,2]
[404201945,1769956150214,-300.0,0.00013429,2]
[404201946,1769956150235,-2780.96601522,0.00013756,2]
[404201947,1769956175344,5531.0,0.000152,3]
[404201948,1769956207268,5531.0,0.00015,3]
[404201966,1769956231614,-656.09435565,0.00013956,2]
[404201967,1769956231626,-434.57723662,0.00013956,2]
[404201968,1769956231638,-385.11018944,0.00013956,2]
[404201969,1769956231648,-250.0,0.00014112,2]
[404201970,1769956231657,-250.0,0.00014261,2]
[404201971,1769956231670,-200.73235754,0.00014269,2]
[404201972,1769956231682,-10.95565292,0.00014269,2]
[404201973,1769956231693,-154.39,0.00014341,2]
[404201974,1769956231703,-183.82719994,0.00014369,2]
[404201975,1769956231755,-1016.17280006,0.00014369,2]
[404201976,1769956231765,-300.0,0.0001437,2]
[404201977,1769956231774,-300.0,0.00014371,2]
[404201978,1769956231784,-300.0,0.00014371,2]
[404201979,1769956231794,-1200.0,0.00014371,2]
[404201980,1769956231804,-150.0,0.00014371,2]
[404201981,1769956231814,-500.0,0.00014372,2]
[404201982,1769956231823,-151.0,0.00014372,2]
[404201983,1769956231832,-151.0,0.00014372,2]
[404201984,1769956231842,-200.0,0.00014372,2]
[404201985,1769956231851,-151.0,0.00014372,2]
[404201986,1769956231860,-151.0,0.00014372,2]
[404201987,1769956231874,-151.0,0.00014372,2]
[404201988,1769956231883,-151.0,0.00014372,2]
[404201989,1769956231893,-151.0,0.00014372,2]
[404201990,1769956231902,-151.0,0.00014372,2]
[404201991,1769956231911,-151.0,0.00014372,2]
[404201992,1769956231920,-151.0,0.00014372,2]
[404201993,1769956231930,-151.0,0.00014372,2]
[404201994,1769956231939,-151.0,0.00014372,2]
[404201995,1769956231953,-151.0,0.00014372,2]
[404201996,1769956231963,-151.0,0.00014372,2]
[404201997,1769956231972,-151.0,0.00014372,2]
[404201998,1769956231982,-151.0,0.00014372,2]
[404201999,1769956231994,-151.0,0.00014372,2]
[404202000,1769956232003,-151.0,0.00014372,2]
[404202001,1769956232013,-151.0,0.00014372,2]
[404202002,1769956232022,-151.0,0.00014372,2]
[404202003,1769956232032,-151.0,0.00014372,2]
[404202004,1769956232041,-151.0,0.00014372,2]
[404202005,1769956232051,-151.0,0.00014372,2]
[404202006,1769956232066,-500.0,0.00014372,2]
[404202007,1769956232077,-151.0,0.00014372,2]
[404202008,1769956232087,-500.0,0.00014372,2]
[404202009,1769956232097,-151.0,0.00014372,2]
[404202010,1769956232107,-130.65629254,0.00014372,2]
[404202011,1769956232120,-20.34370746,0.00014372,2]
[404202012,1769956232131,-500.0,0.00014372,2]
[404202013,1769956232141,-151.0,0.00014372,2]
[404202014,1769956232150,-200.0,0.00014372,2]
[404202015,1769956232160,-151.0,0.00014372,2]
[404202016,1769956232171,-58.16299312,0.00014372,2]
[404202017,1769956232206,-197.94338349,0.00014372,2]
[404202018,1769956232216,-151.0,0.00014372,2]
[404202019,1769956232225,-151.0,0.00014372,2]
[404202020,1769956232235,-151.0,0.00014372,2]
[404202021,1769956232244,-500.0,0.00014372,2]
[404202022,1769956232257,-500.0,0.00014373,2]
[404202023,1769956232266,-500.0,0.00014373,2]
[404202024,1769956232276,-500.0,0.00014373,2]
[404202025,1769956232286,-500.0,0.00014381,2]
[404202026,1769956232297,-310.72048062,0.00014381,2]
[404202027,1769956232307,-500.0,0.00014381,2]
[404202028,1769956232316,-500.0,0.00014381,2]
[404202029,1769956232325,-500.0,0.00014381,2]
[404202030,1769956232334,-500.0,0.00014381,2]
[404202031,1769956232343,-166.66,0.00014456,2]
[404202032,1769956232352,-17134.0,0.000145,2]
[404202033,1769956232361,-195.0,0.0001452,2]
[404202034,1769956232371,-494.09733385,0.0001452,2]
[404202035,1769956232380,-195.0,0.0001452,2]
[404202036,1769956232389,-300.0,0.0001452,2]
[404202037,1769956232398,-195.0,0.0001452,2]
[404202038,1769956232407,-195.0,0.0001452,2]
[404202039,1769956232416,-300.0,0.0001452,2]
[404202040,1769956232425,-500.0,0.00014646,2]
[404202041,1769956232434,-166.66,0.0001476,2]
[404202042,1769956232443,-500.0,0.00014795,2]
[404202043,1769956232452,-211.68801046,0.000149,2]
[404202044,1769956232461,-500.0,0.0001492,2]
[404202045,1769956232470,-200.0,0.0001492,2]
[404202046,1769956232479,-200.0,0.0001492,2]
[404202047,1769956232488,-500.0,0.0001492,2]
[404202048,1769956232497,-316.84,0.00014982,2]
[404202049,1769956232507,-25182.27356457,0.0001499,2]
[404202050,1769956232516,-681.50681021,0.00015,2]
[404202051,1769956232525,-6769.55011286,0.00015,2]
[404202052,1769956232535,-418.01238262,0.00015,2]
[404202053,1769956232544,-240.97,0.00015025,2]
[404202054,1769956232554,-166.66,0.00015065,2]
[404202055,1769956232563,-500.0,0.00015194,2]
[404202056,1769956232572,-154.39,0.0001521,2]
[404202057,1769956232582,-151.0,0.00015229,2]
[404202058,1769956232591,-151.0,0.00015229,2]
[404202059,1769956232601,-151.0,0.00015232,2]
[404202060,1769956232610,-151.0,0.00015232,2]
[404202061,1769956232620,-151.0,0.00015234,2]
[404202062,1769956232630,-151.0,0.00015234,2]
[404202063,1769956232646,-151.0,0.00015235,2]
[404202064,1769956232659,-151.0,0.00015235,2]
[404202065,1769956232668,-648.48,0.00015306,2]
[404202066,1769956232678,-699.6,0.0001532,2]
[404202067,1769956232687,-195.0,0.00015352,2]
[404202068,1769956232697,-300.0,0.00015352,2]
[404202069,1769956232706,-250.0,0.00015352,2]
[404202070,1769956232716,-166.66,0.00015369,2]
[404202071,1769956232725,-504.0,0.00015397,2]
[404202072,1769956232735,-2593.37377716,0.00015454,2]
[404202073,1769956232745,-500.0,0.00015468,2]
[404202074,1769956232754,-200.0,0.00015468,2]
[404202075,1769956232764,-200.0,0.00015468,2]
[404202076,1769956232774,-500.0,0.00015468,2]
[404202077,1769956232783,-255.0,0.00015492,2]
[404202078,1769956232793,-2564.78,0.00015498,2]
[404202079,1769956232803,-2327.6382,0.00015595,2]
[404202080,1769956232812,-5531.0,0.000156,5]
[404202081,1769956232822,-500.0,0.00015616,2]
[404202082,1769956232832,-166.66,0.00015673,2]
[404202083,1769956232841,-209.40437684,0.00015695,2]
[404202084,1769956232851,-231.86721235,0.00015695,2]
[404202085,1769956232860,-250.0,0.00015695,2]
[404202086,1769956232870,-250.0,0.00015695,2]
[404202087,1769956232880,-250.0,0.00015695,2]
[404202088,1769956232889,-250.0,0.00015695,2]
[404202089,1769956232898,-250.0,0.00015695,2]
[404202090,1769956232908,-250.0,0.00015695,2]
[404202091,1769956232917,-250.0,0.00015695,2]
[404202092,1769956232926,-250.0,0.00015695,2]
[404202093,1769956232936,-250.0,0.00015695,2]
[404202094,1769956232946,-250.0,0.00015695,2]
[404202095,1769956232956,-250.0,0.00015695,2]
[404202096,1769956232965,-500.0,0.00015695,2]
[404202097,1769956232974,-500.0,0.00015695,2]
[404202098,1769956232984,-500.0,0.00015695,2]
[404202099,1769956232996,-500.0,0.00015695,2]
[404202100,1769956233008,-209.40437684,0.00015695,2]
[404202101,1769956233019,-500.0,0.00015695,2]
[404202102,1769956233032,-174.61919141,0.00015695,2]
[404202103,1769956233042,-500.0,0.00015695,2]
[404202104,1769956233051,-500.0,0.00015695,2]
[404202105,1769956233062,-322.6107,0.00015695,2]
[404202106,1769956233071,-500.0,0.00015695,2]
[404202107,1769956233082,-500.0,0.00015695,2]
[404202108,1769956233091,-500.0,0.00015695,2]
[404202109,1769956233100,-500.0,0.00015695,2]
[404202110,1769956233110,-500.0,0.00015695,2]
[404202111,1769956233119,-500.0,0.00015695,2]
[404202112,1769956233128,-500.0,0.00015695,2]
[404202113,1769956233138,-322.93423034,0.00015695,2]
[404202114,1769956233147,-209.40437684,0.00015695,2]
[404202115,1769956233157,-420.0,0.00015737,2]
[404202116,1769956233167,-420.0,0.00015739,2]
[404202117,1769956233175,-500.0,0.00015742,2]
[404202118,1769956233185,-217.15233878,0.0001575,2]
[404202119,1769956233194,-150.0,0.00015792,2]
[404202120,1769956233204,-500.0,0.00015792,2]
[404202121,1769956233213,-150.0,0.00015792,2]
[404202122,1769956233223,-500.0,0.00015792,2]
[404202123,1769956233232,-150.0,0.00015792,2]
[404202124,1769956233242,-229.5686788,0.00015792,2]
[404202125,1769956233251,-500.0,0.00015792,2]
[404202126,1769956233262,-500.0,0.00015792,2]
[404202127,1769956233271,-150.0,0.00015792,2]
[404202128,1769956233281,-500.0,0.00015792,2]
[404202129,1769956233290,-150.0,0.00015792,2]
[404202130,1769956233299,-150.0,0.00015792,2]
[404202131,1769956233311,-500.0,0.00015792,2]
[404202132,1769956233322,-500.0,0.00015792,2]
[404202133,1769956233332,-150.0,0.00015792,2]
[404202134,1769956233342,-500.0,0.00015792,2]
[404202135,1769956233352,-150.0,0.00015792,2]
[404202136,1769956233362,-150.0,0.00015792,2]
[404202137,1769956233372,-150.0,0.00015792,2]
[404202138,1769956233382,-150.0,0.00015792,2]
[404202139,1769956233392,-150.0,0.00015792,2]
[404202140,1769956233403,-150.0,0.00015792,2]
[404202141,1769956233417,-150.0,0.00015792,2]
[404202142,1769956233427,-500.0,0.00015792,2]
[404202143,1769956233436,-225.18697532,0.00015805,2]
[404202144,1769956233446,-194.90144509,0.00015807,2]
[404202145,1769956233456,-1680.0,0.00015808,2]
[404202146,1769956233465,-500.0,0.00015847,2]
[404202147,1769956233475,-500.0,0.00015847,2]
[404202148,1769956233485,-150.0,0.00015847,2]
[404202149,1769956233496,-500.0,0.00015847,2]
[404202150,1769956233505,-500.0,0.00015847,2]
[404202151,1769956233516,-500.0,0.00015847,2]
[404202152,1769956233526,-150.0,0.00015847,2]
[404202153,1769956233535,-500.0,0.00015847,2]
[404202154,1769956233545,-500.0,0.00015847,2]
[404202155,1769956233554,-150.0,0.00015847,2]
[404202156,1769956233564,-500.0,0.00015847,2]
[404202157,1769956233574,-150.0,0.00015847,2]
[404202158,1769956233583,-150.0,0.00015847,2]
[404202159,1769956233593,-150.0,0.00015847,2]
[404202160,1769956233603,-150.0,0.00015847,2]
[404202161,1769956233613,-150.0,0.00015847,2]
[404202162,1769956233622,-500.0,0.00015847,2]
[404202163,1769956233631,-233.51889341,0.0001586,2]
[404202164,1769956233641,-500.0,0.00015902,2]
[404202165,1769956233651,-500.0,0.00015902,2]
[404202166,1769956233660,-150.0,0.00015902,2]
[404202167,1769956233670,-500.0,0.00015902,2]
[404202168,1769956233680,-500.0,0.00015902,2]
[404202169,1769956233689,-500.0,0.00015902,2]
[404202170,1769956233698,-200.0,0.00015902,2]
[404202171,1769956233708,-500.0,0.00015902,2]
[404202172,1769956233718,-265.19440411,0.00015902,2]
[404202173,1769956233727,-150.0,0.00015902,2]
[404202174,1769956233737,-500.0,0.00015902,2]
[404202175,1769956233746,-150.0,0.00015902,2]
[404202176,1769956233756,-150.0,0.00015902,2]
[404202177,1769956233766,-200.0,0.00015902,2]
[404202178,1769956233775,-150.0,0.00015902,2]
[404202179,1769956233786,-200.0,0.00015902,2]
[404202180,1769956233798,-500.0,0.00015902,2]
[404202181,1769956233807,-242.15909246,0.00015915,2]
[404202182,1769956233817,-500.0,0.00015956,2]
[404202183,1769956233826,-500.0,0.00015956,2]
[404202184,1769956233835,-289.91292763,0.00015956,2]
[404202185,1769956233845,-500.0,0.00015956,2]
[404202186,1769956233854,-252.887661,0.00015956,2]
[404202187,1769956233864,-500.0,0.00015956,2]
[404202188,1769956233875,-500.0,0.00015956,2]
[404202189,1769956233885,-177.0,0.00015956,2]
[404202190,1769956233894,-500.0,0.00015956,2]
[404202191,1769956233904,-150.0,0.00015956,2]
[404202192,1769956233913,-150.0,0.00015956,2]
[404202193,1769956233923,-150.0,0.00015956,2]
[404202194,1769956233932,-500.0,0.00015956,2]
[404202195,1769956233942,-251.11897888,0.0001597,2]
[404202196,1769956233956,-166.66,0.00015978,2]
[404202197,1769956233966,-166.66,0.00015988,2]
[404202198,1769956233975,-466.0,0.00016011,2]
[404202199,1769956233984,-500.0,0.00016011,2]
[404202200,1769956233995,-500.0,0.00016011,2]
[404202201,1769956234004,-405.0,0.00016011,2]
[404202202,1769956234015,-150.0,0.00016011,2]
[404202203,1769956234024,-500.0,0.00016011,2]
[404202204,1769956234034,-150.0,0.00016011,2]
[404202205,1769956234044,-150.0,0.00016011,2]
[404202206,1769956234054,-250.0,0.00016011,2]
[404202207,1769956234063,-500.0,0.00016011,2]
[404202208,1769956234072,-500.0,0.00016016,2]
[404202209,1769956234082,-200.0,0.00016016,2]
[404202210,1769956234092,-206.24263098,0.00016016,2]
[404202211,1769956234101,-500.0,0.00016016,2]
[404202212,1769956234110,-159.11024008,0.00016017,2]
[404202213,1769956234119,-260.4103811,0.00016025,2]
[404202214,1769956234129,-402.21633969,0.00016066,2]
[404202215,1769956234138,-500.0,0.00016066,2]
[404202216,1769956234148,-376.42986293,0.00016066,2]
[404202217,1769956234157,-250.0,0.00016066,2]
[404202218,1769956234167,-500.0,0.00016066,2]
[404202219,1769956234180,-270.0455652,0.0001608,2]
[404202220,1769956234190,-699.6,0.00016086,2]
[404202221,1769956234199,-2500.0,0.000161,2]
[404202222,1769956234208,-24255.45778529,0.00016115,2]
[404202223,1769956234218,-500.0,0.00016121,2]
[404202224,1769956234229,-500.0,0.00016121,2]
[404202225,1769956234238,-280.03725112,0.00016135,2]
[404202226,1769956234247,-500.0,0.00016176,2]
[404202227,1769956234257,-500.0,0.00016176,2]
[404202228,1769956234269,-290.39862941,0.0001619,2]
[404202229,1769956234278,-534.74704127,0.00016199,2]
[404202230,1769956234287,-195.22194941,0.00016199,2]
[404202231,1769956234296,-500.0,0.00016199,2]
[404202232,1769956234306,-500.0,0.00016199,2]
[404202233,1769956234316,-500.0,0.00016199,2]
[404202234,1769956234326,-500.0,0.00016199,2]
[404202235,1769956234335,-500.0,0.00016199,2]
[404202236,1769956234344,-500.0,0.00016199,2]
[404202237,1769956234354,-500.0,0.00016199,2]
[404202238,1769956234363,-500.0,0.00016199,2]
[404202239,1769956234373,-500.0,0.00016199,2]
[404202240,1769956234382,-500.0,0.00016199,2]
[404202241,1769956234392,-500.0,0.00016199,2]
[404202242,1769956234401,-500.0,0.00016199,2]
[404202243,1769956234411,-500.0,0.00016199,2]
[404202244,1769956234420,-500.0,0.00016199,2]
[404202245,1769956234430,-500.0,0.00016199,2]
[404202246,1769956234440,-500.0,0.00016199,2]
[404202247,1769956234450,-500.0,0.00016199,2]
[404202248,1769956234461,-500.0,0.00016199,2]
[404202249,1769956234471,-500.0,0.00016199,2]
[404202250,1769956234480,-179.23666556,0.00016199,2]
[404202251,1769956234489,-500.0,0.00016199,2]
[404202252,1769956234499,-500.0,0.00016199,2]
[404202253,1769956234509,-500.0,0.00016199,2]
[404202254,1769956234519,-17621.77320401,0.000162,5]
[404202255,1769956234535,-50828.89456819,0.000162,5]
[404202256,1769956234548,-50066.26089773,0.000162,5]
[404202257,1769956234559,-500.0,0.00016215,2]
[404202258,1769956234568,-546.0,0.0001623,2]
[404202259,1769956234578,-500.0,0.0001623,2]
[404202260,1769956234589,-217.15233878,0.00016243,2]
[404202261,1769956234599,-328.4357769,0.00016243,2]
[404202262,1769956234609,-181.08010149,0.00016243,2]
[404202263,1769956234619,-301.1433787,0.00016245,2]
[404202264,1769956234629,-500.0,0.00016285,2]
[404202265,1769956234639,-500.0,0.0001629,2]
[404202266,1769956234648,-682.79532835,0.000163,2]
[404202267,1769956234660,-1236.49542323,0.000163,2]
[404202268,1769956234669,-24255.45778528,0.00016313,2]
[404202269,1769956234679,-500.0,0.0001634,2]
[404202270,1769956234689,-500.0,0.00016395,2]
[404202271,1769956234698,-2834.0,0.000164,2]
[404202272,1769956234707,-19967.33141544,0.00016415,2]
[404202273,1769956234718,-500.0,0.00016438,2]
[404202274,1769956234728,-500.0,0.00016438,2]
[404202275,1769956234737,-500.0,0.00016438,2]
[404202276,1769956234747,-500.0,0.00016438,2]
[404202277,1769956234757,-500.0,0.00016438,2]
[404202278,1769956234767,-500.0,0.00016438,2]
[404202279,1769956234777,-500.0,0.00016438,2]
[404202280,1769956234786,-500.0,0.00016438,2]
[404202281,1769956234796,-500.0,0.00016438,2]
[404202282,1769956234806,-500.0,0.00016438,2]
[404202283,1769956234815,-500.0,0.00016438,2]
[404202284,1769956234826,-500.0,0.00016438,2]
[404202285,1769956234835,-500.0,0.00016438,2]
[404202286,1769956234845,-500.0,0.00016438,2]
[404202287,1769956234855,-500.0,0.00016438,2]
[404202288,1769956234864,-500.0,0.00016438,2]
[404202289,1769956234875,-500.0,0.00016438,2]
[404202290,1769956234884,-500.0,0.00016438,2]
[404202291,1769956234894,-500.0,0.00016438,2]
[404202292,1769956234903,-500.0,0.00016438,2]
[404202293,1769956234913,-500.0,0.00016438,2]
[404202294,1769956234923,-500.0,0.00016438,2]
[404202295,1769956234933,-500.0,0.00016438,2]
[404202296,1769956234943,-500.0,0.00016438,2]
[404202297,1769956234955,-500.0,0.00016438,2]
[404202298,1769956234964,-500.0,0.00016438,2]
[404202299,1769956234975,-500.0,0.00016438,2]
[404202300,1769956234985,-500.0,0.00016438,2]
[404202301,1769956234995,-500.0,0.00016438,2]
[404202302,1769956235004,-500.0,0.00016438,2]
[404202303,1769956235015,-500.0,0.00016438,2]
[404202304,1769956235027,-500.0,0.00016438,2]
[404202305,1769956235037,-500.0,0.00016438,2]
[404202306,1769956235047,-500.0,0.00016438,2]
[404202307,1769956235056,-385.49040147,0.00016438,2]
[404202308,1769956235065,-500.0,0.00016438,2]
[404202309,1769956235076,-500.0,0.00016438,2]
[404202310,1769956235086,-500.0,0.00016438,2]
[404202311,1769956235095,-500.0,0.00016438,2]
[404202312,1769956235105,-500.0,0.00016438,2]
[404202313,1769956235114,-500.0,0.00016438,2]
[404202314,1769956235124,-500.0,0.00016438,2]
[404202315,1769956235133,-500.0,0.00016438,2]
[404202316,1769956235143,-500.0,0.00016438,2]
[404202317,1769956235385,-500.0,0.00016438,2]
[404202318,1769956235396,-500.0,0.00016438,2]
[404202319,1769956235406,-250.0,0.00016438,2]
[404202320,1769956235416,-500.0,0.00016438,2]
[404202321,1769956235425,-500.0,0.00016438,2]
[404202322,1769956235436,-500.0,0.00016438,2]
[404202323,1769956235446,-500.0,0.00016438,2]
[404202324,1769956235457,-500.0,0.00016438,2]
[404202325,1769956235467,-500.0,0.00016438,2]
[404202326,1769956235476,-500.0,0.00016438,2]
[404202327,1769956235486,-500.0,0.00016438,2]
[404202328,1769956235496,-500.0,0.00016438,2]
[404202329,1769956235505,-500.0,0.00016438,2]
[404202330,1769956235515,-500.0,0.00016438,2]
[404202331,1769956235524,-500.0,0.00016438,2]
[404202332,1769956235533,-500.0,0.00016438,2]
[404202333,1769956235544,-500.0,0.0001645,2]
[404202334,1769956235553,-500.0,0.00016503,2]
[404202335,1769956235562,-247.48093228,0.00016503,2]
[404202336,1769956235571,-294.45556385,0.00016503,2]
[404202337,1769956235581,-361.86290072,0.00016503,2]
[404202338,1769956235593,-500.0,0.00016504,2]
[404202339,1769956235602,-24255.45778528,0.00016512,2]
[404202340,1769956235612,-166.66,0.00016515,2]